Workbook

Sheet раздел 1
CL2: Приложение № 1 к Порядку
CI3: Утверждаю
CI4: Директор
CI5: (наименование должности уполномоченного лица)
CI6: МАУ "МДЦ "Восход""
CI7: (наименование Учредителя (Учреждения)
CL8: Герасимов С.В.
CI9: (подпись) | CL9: (расшифровка подписи)
CN10: 20 | CT10: г.
BJ12: План финансово-хозяйственной деятельности на | BN12: г.
Q13: (на 20 | X13: 21 | AA13: г. и плановый период 20 | AW13: 22 | AZ13: и 20 | BE13: 23 | BH13: годов 1) | CM13: Коды
Y15: от " | AF15: " | AX15: 20 | BD15: г.2 | CL15: Дата
A16: Орган, осуществляющий | CK16: по Сводному реестру
A17: функции и полномочия учредителя | AB17: Администрация муниципального образования Киришский муниципальный район Ленинградской области | CK17: глава по БК
CK18: по Сводному реестру
CL19: ИНН | CM19: 4708020562
A20: Учреждение | AB20: Муниципальное автономное учреждение «Молодёжно-досуговый центр «Восход» муниципального образования «Киришское городское поселение Киришского муниципального района Ленинградской области» (МАУ « МДЦ «ВОСХОД») | CL20: КПП | CM20: 472701001
A21: Единица измерения: руб. | CM21: 383
A22: Раздел 1. Поступления и выплаты
A24: Наименование показателя | AP24: Код строки | AX24: Код по бюджетной классификации Российской Федерации 3 | BK24: Аналитический код 4 | BX24: Сумма
BY25: на 20 | BZ25: 21г. | CD25: на 20 | CE25: 22г. | CI25: на 20 | CJ25: 23г. | CM25: за пределами планового периода
BX26: текущий финансовый год | CC26: первый год планового периода | CH26: второй год планового периода
BX27: ВСЕГО | BY27: субсидии на финансовое обеспечение выполнения муниципального задания | BZ27: целевые субсидии | CA27: субсидии на осуществление капитальных вложений | CB27: поступления от оказания услуг (выполнения работ) на платной основе и иной приносящей доход деятельности | CC27: ВСЕГО | CD27: субсидии на финансовое обеспечение выполнения муниципального задания | CE27: целевые субсидии | CF27: субсидии на осуществление капитальных вложений | CG27: поступления от оказания услуг (выполнения работ) на платной основе и иной приносящей доход деятельности | CH27: ВСЕГО | CI27: субсидии на финансовое обеспечение выполнения муниципального задания | CJ27: целевые субсидии | CK27: субсидии на осуществление капитальных вложений | CL27: поступления от оказания услуг (выполнения работ) на платной основе и иной приносящей доход деятельности
A28: 1 | AP28: 2 | AX28: 3 | BK28: 4 | BX28: 5 | BY28: 6 | BZ28: 7 | CA28: 8 | CB28: 9 | CC28: 5 | CD28: 6 | CE28: 7 | CF28: 8 | CG28: 9 | CH28: 5 | CI28: 6 | CJ28: 7 | CK28: 8 | CL28: 9 | CM28: 20
A29: Остаток средств на начало текущего финансового года 5 | AP29: 0001 | AX29: х | BK29: х | BX29: =BY29+CB29 -> 73395.92 | BY29: 11656.32 | CB29: 61739.6
A30: Остаток средств на конец текущего финансового года 5 | AP30: 0002 | AX30: х | BK30: х
A31: Доходы, всего: | AP31: 1000 | BX31: =BY31+BZ31+CB31 -> 25526428.24 | BY31: =BY35+BY32 -> 19508858.8 | BZ31: =BZ43 -> 4545373.4 | CB31: =CB35+CB32 -> 1472196.04 | CC31: =CD31+CE31+CG31 -> 29416253.59 | CD31: =CD35+CD43 -> 20579779.71 | CE31: =CE43 -> 1694972.45 | CG31: =CG37+CG32 -> 7141501.43 | CH31: =CI31+CJ31+CL31 -> 29416253.59 | CI31: =CI36 -> 20579779.71 | CJ31: =CJ43 -> 1694972.45 | CL31: =CL37+CL32 -> 7141501.43
A32: в том числе: доходы от собственности, всего | AP32: 1100 | AX32: 120 | BX32: =BX34 -> 129095.32 | CB32: =CB34 -> 129095.32 | CC32: =CC34 -> 0 | CG32: 0 | CH32: 0 | CL32: =CL34 -> 0
A33: в том числе: | AP33: 1110 | AX33: 121
A34: доходы от операционной аренды | BX34: =CB34 -> 129095.32 | CB34: 129095.32
A35: доходы от оказания услуг, работ, компенсации затрат учреждений, всего | AP35: 1200 | AX35: 130 | BX35: =BX36+BX37+BX39 -> 20851959.52 | BY35: =BY36 -> 19508858.8 | BZ35: 0 | CA35: 0 | CB35: =CB37+CB39 -> 1343100.72 | CC35: =CC36+CC37 -> 27721281.14 | CD35: =CD36 -> 20579779.71 | CG35: =CG37 -> 7141501.43 | CH35: =CH36+CH37 -> 27721281.14 | CI35: =CI36 -> 20579779.71 | CL35: =CL36+CL37 -> 7141501.43
A36: в том числе: субсидии на финансовое обеспечение выполнения муниципального задания за счет средств бюджета публично-правового образования, создавшего учреждение | AP36: 1210 | AX36: 130 | BK36: 0707 131 | BX36: =BY36 -> 19508858.8 | BY36: 19508858.8 | CC36: =CD36 -> 20579779.71 | CD36: 20579779.71 | CH36: =CI36 -> 20579779.71 | CI36: 20579779.71
A37: поступления от оказания услуг (выполнения работ) на платной основе и иной приносящей доход деятельности всего | AP37: 1220 | AX37: 130 | BK37: 0707 131 | BX37: =CB37 -> 1132899.01 | CB37: =1130614.01+2285 -> 1132899.01 | CC37: =CG37 -> 7141501.43 | CG37: 7141501.43 | CH37: =CL37 -> 7141501.43 | CL37: 7141501.43
A38: поступления от компенсации затрат учреждений | AP38: 1230 | AX38: 130 | BK38: 0707 134 | BX38: =CB38 -> 0 | CB38: 0
A39: Доходы по условным арендным платежам | AP39: 1230 | AX39: 130 | BK39: 0707 135 | BX39: =CB39 -> 210201.71 | CB39: 210201.71
A40: доходы от штрафов, пеней, иных сумм принудительного изъятия, всего | AP40: 1300 | AX40: 140
A41: в том числе: | AP41: 1310 | AX41: 140
A43: безвозмездные денежные поступления, всего | AP43: 1400 | AX43: 150 | BX43: =BX44 -> 4545373.4 | BZ43: =BZ44 -> 4545373.4 | CC43: =CC44 -> 1694972.45 | CE43: =CE44 -> 1694972.45 | CH43: =CH44 -> 1694972.45 | CJ43: =CJ44 -> 1694972.45
A44: в том числе: целевые субсидии | AP44: 1410 | AX44: 150 | BX44: =SUM(BX45:BX49) -> 4545373.4 | BZ44: =SUM(BZ45:BZ49) -> 4545373.4 | CC44: =SUM(CC45:CC49) -> 1694972.45 | CE44: =SUM(CE45:CE49) -> 1694972.45 | CH44: =SUM(CH45:CH49) -> 1694972.45 | CJ44: =SUM(CJ45:CJ49) -> 1694972.45
A45: Работы с детьми и молодежью в подведомственных учреждениях (ремонт имущества и благоустройство территории) | AX45: 150 | BK45: 0707 152 | BX45: =BZ45 -> 3600406.8 | BZ45: =300406.8+3300000 -> 3600406.8 | CC45: =CE45 -> 397448.8 | CE45: 397448.8 | CH45: =CJ45 -> 397448.8 | CJ45: 397448.8
A46: Работа с детьми и молодежью в подведомственных учреждениях (приобретение основных средств и материальных запасов) | AX46: 150 | BK46: 0707 152 | BX46: =BZ46 -> 271579.25 | BZ46: 271579.25 | CC46: =CE46 -> 614769.25 | CE46: 614769.25 | CH46: =CJ46 -> 614769.25 | CJ46: 614769.25
A47: Поддержка деятельности молодежных общественных организаций, объединений, инициатив и развитие добровольческого (волонтерского) движения, содействию трудовой адаптации и занятости молодежи (Губернаторский молодежный отряд) | AX47: 150 | BK47: 0707 152 | BX47: =BZ47 -> 268532.05 | BZ47: 268532.05 | CC47: =CE47 -> 268535 | CE47: 268535 | CH47: =CJ47 -> 268535 | CJ47: 268535
A48: Работы с молодежью по различным направлениям молодежной политики (Губернаторский молодежный отряд) | AX48: 150 | BK48: 0707 152 | BX48: =BZ48 -> 182419.4 | BZ48: 182419.4 | CC48: =CE48 -> 182419.4 | CE48: 182419.4 | CH48: =CJ48 -> 182419.4 | CJ48: 182419.4
A49: Реализация комплекса мер по сохранению исторической памяти (церемония захоронения останков погибших защитников Отечества) | AX49: 150 | BK49: 0707 152 | BX49: =BZ49 -> 222435.9 | BZ49: 222435.9 | CC49: 231800 | CE49: 231800 | CH49: 231800 | CJ49: 231800
A50: субсидии на осуществление капитальных вложений | AP50: 1420 | AX50: 150
A52: прочие доходы, всего | AP52: 1500 | AX52: 180
A53: в том числе:
A54: доходы от операций с активами, всего | AP54: 1900 | AX54: 510
A55: в том числе:
A58: прочие поступления, всего 6 | AP58: 1980 | AX58: х
A59: из них: увеличение остатков денежных средств за счет возврата дебиторской задолженности прошлых лет | AP59: 1981 | AX59: 510 | CM59: х
A61: Расходы, всего | AP61: 2000 | AX61: х | BX61: =BY61+BZ61+CA61+CB61 -> 25551757.16 | BY61: =BY62+BY86+BY102 -> 19520515.12 | BZ61: =BZ62+BZ86+BZ102 -> 4545373.4 | CB61: =CB62+CB79+CB86+CB102+CB99 -> 1485868.64 | CC61: =CD61+CE61+CF61+CG61 -> 29266253.59 | CD61: =CD62+CD86+CD102 -> 20579779.71 | CE61: =CE62+CE86+CE102 -> 1694972.45 | CG61: =CG62+CG86+CG102+CG99+0.01 -> 6991501.43 | CH61: =CI61+CJ61+CK61+CL61 -> 29266253.59 | CI61: =CI62+CI86+CI102 -> 20579779.71 | CJ61: =CJ62+CJ86+CJ102 -> 1694972.45 | CL61: =CL62+CL86+CL102+CL99+0.01 -> 6991501.43
A62: в том числе: на выплаты персоналу, всего | AP62: 2100 | AX62: х | BX62: =BY62+BZ62+CA62+CB62 -> 16486717.33 | BY62: =BY63+BY64+BY67+BY68+BY79+BY69+BY70 -> 15814346.93 | BZ62: =BZ63+BZ64+BZ67+BZ68+BZ69 -> 181019.4 | CB62: =CB63+CB64+CB67+CB68+CB69 -> 491351 | CC62: =CD62+CE62+CF62+CG62+0.01 -> 21481079.77 | CD62: =CD63+CD64+CD67+CD68+CD69 -> 16384715.68 | CE62: =CE63+CE64+CE67+CE68+CE69 -> 181019.4 | CG62: =CG63+CG64+CG67+CG68+CG79-0.01+CG69 -> 4915344.68 | CH62: =CH63+CH64+CH67+CH68+CH69 -> 21418079.77 | CI62: =CI63+CI64+CI67+CI68+CI69 -> 16384715.68 | CJ62: =CJ63+CJ64+CJ67+CJ68+CJ69 -> 181019.4 | CL62: =CL63+CL64+CL67+CL68+CL79-0.01+CL69 -> 4915344.68 | CM62: х
A63: в том числе: оплата труда | AP63: 2110 | AX63: 111 | BK63: 0707 211 | BX63: =BY63+CB63+BZ63 -> 10990127.18 | BY63: 10500595.38 | BZ63: 139031.8 | CB63: 350500 | CC63: =CD63+CG63+CE63 -> 14819507.43 | CD63: =10979934.38+0.01 -> 10979934.39 | CE63: 139031.8 | CG63: 3700541.24 | CH63: =CI63+CL63+CJ63 -> 14819507.43 | CI63: =10979934.38+0.01 -> 10979934.39 | CJ63: 139031.8 | CL63: 3700541.24 | CM63: х
A64: оплата труда | AP64: 2111 | AX64: 111 | BK64: 0801 211 | BX64: =BY64+CB64 -> 1576476 | BY64: 1576476 | CC64: =CD64+CG64 -> 1604332.65 | CD64: 1604332.65 | CH64: =CI64+CL64 -> 1604332.65 | CI64: 1604332.65 | CM64: х
A65: прочие выплаты персоналу, в том числе компенсационного характера | AP65: 2120 | AX65: 112 | CM65: х
A66: иные выплаты, за исключением фонда оплаты труда учреждения, для выполнения отдельных полномочий | AP66: 2130 | AX66: 113 | CM66: х
A67: взносы по обязательному социальному страхованию на выплаты по оплате труда работников и иные выплаты работникам учреждений, всего | AP67: 2140 | AX67: 119 | BK67: 0707 213 | BX67: =BY67+CB67+BZ67 -> 3319018.4 | BY67: =3171179.78+0.02 -> 3171179.8 | BZ67: 41987.6 | CB67: 105851 | CC67: =CD67+CG67+CE67 -> 4475491.24 | CD67: 3315940.19 | CE67: 41987.6 | CG67: 1117563.45 | CH67: =CI67+CL67+CJ67 -> 4475491.24 | CI67: 3315940.19 | CJ67: 41987.6 | CL67: 1117563.45 | CM67: х
A68: взносы по обязательному социальному страхованию на выплаты по оплате труда работников и иные выплаты работникам учреждений, всего | AP68: 2141 | AX68: 119 | BK68: 0801 213 | BX68: =BY68+CB68 -> 476095.75 | BY68: 476095.75 | CC68: =CD68+CG68 -> 484508.45 | CD68: 484508.45 | CH68: =CI68+CL68 -> 484508.45 | CI68: 484508.45 | CM68: х
A69: социальные пособия и компенсации персоналу в денежной форме | AP69: 2213 | AX69: 111 | BK69: 0707 266 | BX69: =BY69+CB69 -> 125000 | BY69: 90000 | CB69: 35000 | CC69: =CD69+CG69 -> 34240 | CG69: 34240 | CH69: =CI69+CL69 -> 34240 | CL69: 34240
A70: Пособие по социальной помощи, выплачиваемые работодателями, нанимателями бывшим работникам в натуральной форме | AP70: 2214 | AX70: 119 | BK70: 0707 265 | BX70: =BY70+CB70 -> 0 | BY70: 0 | CC70: =CD70+CG70 -> 34240 | CG70: 34240 | CH70: =CI70+CL70 -> 34240 | CL70: 34240
A71: в том числе: на выплаты по оплате труда | AP71: 2141 | AX71: 119 | CM71: х
A72: на иные выплаты работникам | AP72: 2142 | AX72: 119 | CM72: х
A73: денежное довольствие военнослужащих и сотрудников, имеющих специальные звания | AP73: 2150 | AX73: 131 | CM73: х
A74: расходы на выплаты военнослужащим и сотрудникам, имеющим специальные звания, зависящие от размера денежного довольствия | AP74: 2160 | AX74: 133
A75: иные выплаты военнослужащим и сотрудникам, имеющим специальные звания | AP75: 2170 | AX75: 134 | CM75: х
A76: страховые взносы на обязательное социальное страхование в части выплат персоналу, подлежащих обложению страховыми взносами | AP76: 2180 | AX76: 139 | CM76: х
A77: в том числе: на оплату труда стажеров | AP77: 2181 | AX77: 139 | CM77: х
A78: на иные выплаты гражданским лицам (денежное содержание) | AP78: 2172 | AX78: 139 | CM78: х
A79: социальные и иные выплаты населению, всего | AP79: 2200 | AX79: 300 | BX79: =BY79+CB79 -> 60387.48 | CB79: =CB80 -> 60387.48 | CC79: =CD79+CG79 -> 63000 | CG79: =CG80 -> 63000 | CH79: =CI79+CL79 -> 63000 | CL79: =CL80 -> 63000 | CM79: х
A80: в том числе: социальные выплаты гражданам, кроме публичных нормативных социальных выплат | AP80: 2210 | AX80: 320 | BX80: =CB80 -> 60387.48 | CB80: =CB82 -> 60387.48 | CC80: 63000 | CG80: 63000 | CH80: 63000 | CL80: 63000 | CM80: х
A81: из них: пособия, компенсации и иные социальные выплаты гражданам, кроме публичных нормативных обязательств | AP81: 2211 | CM81: х
A82: пенсии, пособия, выплачиваемые работодателями, нанимателями бывшим работникам | AP82: 2212 | AX82: 321 | BK82: 0707 264 | BX82: =CB82 -> 60387.48 | CB82: 60387.48 | CC82: 63000 | CG82: 63000 | CH82: 63000 | CL82: 63000 | CM82: х
A83: выплата стипендий, осуществление иных расходов на социальную поддержку обучающихся за счет средств стипендиального фонда | AP83: 2220 | AX83: 340 | CM83: х
A84: на премирование физических лиц за достижения в области культуры, искусства, образования, науки и техники, а также на предоставление грантов с целью поддержки проектов в области науки, культуры и искусства | AP84: 2230 | AX84: 350 | CM84: х
A85: иные выплаты населению | AP85: 2240 | AX85: 360 | CM85: х
A86: уплата налогов, сборов и иных платежей, всего | AP86: 2300 | AX86: 850 | BX86: =CB86 -> 1145.84 | CB86: =CB87+CB88+CB89+CB90 -> 1145.84 | CM86: х
A87: из них: налог на имущество организаций и земельный налог | AP87: 2310 | AX87: 851 | CM87: х
A88: налоги, пошлины и сборы налог на имущество организаций и земельный налог | AP88: 2320 | AX88: 852 | CM88: х
A89: иные налоги (включаемые в состав расходов) в бюджеты бюджетной системы Российской Федерации, а также государственная пошлина | AP89: 2320 | AX89: 852 | CM89: х
A90: уплата штрафов (в том числе административных), пеней, иных платежей | AP90: 2330 | AX90: 853 | BK90: 0707 292 | BX90: =CB90 -> 1145.84 | CB90: 1145.84 | CM90: х
A91: безвозмездные перечисления организациям и физическим лицам, всего | AP91: 2400 | AX91: х | CM91: х
A92: из них: гранты, предоставляемые бюджетным учреждениям | AP92: 2410 | AX92: 613 | CM92: х
A93: гранты, предоставляемые автономным учреждениям | AP93: 2420 | AX93: 623 | CM93: х
A94: гранты, предоставляемые иным некоммерческим организациям (за исключением бюджетных и автономных учреждений) | AP94: 2430 | AX94: 634 | CM94: х
A95: гранты, предоставляемые другим организациям и физическим лицам | AP95: 2440 | AX95: 810
A96: взносы в международные организации | AP96: 2450 | AX96: 862
A97: платежи в целях обеспечения реализации соглашений с правительствами иностранных государств и международными организациями | AP97: 2460 | AX97: 863
A99: прочие выплаты (кроме выплат на закупку товаров, работ, услуг) | AP99: 2500 | AX99: х | BX99: =BX101 -> 39680 | CB99: =CB101 -> 39680 | CG99: =CG101 -> 20000 | CL99: =CL101 -> 20000 | CM99: х
A100: исполнение судебных актов Российской Федерации и мировых соглашений по возмещению вреда, причиненного в результате деятельности учреждения | AP100: 2520 | AX100: 831 | CM100: х
A101: прочие расходы | AP101: 2521 | AX101: 112 | BK101: 0707 226 | BX101: =CB101 -> 39680 | CB101: 39680 | CG101: 20000 | CL101: 20000 | CM101: х
A102: расходы на закупку товаров, работ, услуг, всего 7 | AP102: 2600 | AX102: х | BX102: =BX104+BX131+BX132+BX133 -> 8963826.51 | BY102: =BY104+BY132+BY133 -> 3706168.19 | BZ102: =BZ104 -> 4364354 | CB102: =CB104+CB131+CB132+CB133 -> 893304.32 | CC102: =CC104+CC131+CC132+CC133 -> 7765173.82 | CD102: =CD104+CD131+CD132+CD133 -> 4195064.03 | CE102: =CE104+CE131+CE132+CE133 -> 1513953.05 | CG102: =CG104+CG131+CG132+CG133 -> 2056156.74 | CH102: =CH104+CH132+CH133 -> 7765173.82 | CI102: =CI104+CI132+CI133 -> 4195064.03 | CJ102: 1513953.05 | CL102: =CL104+CL132+CL133 -> 2056156.74
A103: в том числе: закупку научно-исследовательских, опытно-конструкторских и технологических работ | AP103: 2610 | AX103: 241
A104: прочую закупку товаров, работ и услуг | AP104: 2640 | AX104: 244 | BX104: =SUM(BX106:BX130) -> 7943355.66 | BY104: =SUM(BY106:BY129) -> 2888434.21 | BZ104: =SUM(BZ106:BZ129) -> 4364354 | CB104: 690567.45 | CC104: 6663627.87 | CD104: 3177615.02 | CE104: 1513953.05 | CG104: 1972059.8 | CH104: 6663627.87 | CI104: 3177615.02 | CJ104: 1513953.05 | CL104: 1972059.8
A105: из них:
A106: услуги связи | AX106: 244 | BK106: 0707 221 | BX106: =BY106+BZ106+CA106+CB106 -> 191154.24 | BY106: 153154.24 | CB106: 38000 | CC106: =CD106+CE106+CF106+CG106 -> 187403.26 | CD106: 139875.58 | CG106: 47527.68 | CH106: =CI106+CJ106+CK106+CL106 -> 187403.26 | CI106: 139875.58 | CL106: 47527.68
A107: услуги связи | AX107: 244 | BK107: 0801 221 | BX107: =BY107+BZ107+CA107+CB107 -> 16992.95 | BY107: 16992.95 | CC107: =CD107+CE107+CF107+CG107 -> 33516.74 | CD107: 33516.74 | CH107: =CI107+CJ107+CK107+CL107 -> 33516.74 | CI107: 33516.74
A108: транспортные услуги | AX108: 244 | BK108: 0707 222 | BX108: 164210 | BY108: 75710 | BZ108: 88500 | CB108: 0 | CC108: 265058.63 | CD108: 150158.63 | CE108: 88500 | CG108: 26400 | CH108: 265058.63 | CI108: 150158.63 | CJ108: 88500 | CL108: 26400
A109: транспортные услуги | AX109: 244 | BK109: 0801 222 | BX109: 75950 | BY109: 75950 | CC109: 70557.37 | CD109: 70557.37 | CH109: 70557.37 | CI109: 70557.37
A110: коммунальные услуги | AX110: 244 | BK110: 0707 223 | BX110: 74808.21 | BY110: 67342.92 | CB110: 7465.29 | CC110: 79419.65 | CD110: 65420.73 | CG110: 13998.92 | CH110: 79419.65 | CI110: 65420.73 | CL110: 13998.92
A111: коммунальные услуги | AX111: 244 | BK111: 0801 223 | BX111: 0 | CC111: =CD111+CE111+CF111+CG111 -> 0 | CH111: 0
A112: услуги по содержанию имущества | AX112: 244 | BK112: 0707 225 | BX112: 4351392.36 | BY112: 591082.15 | BZ112: =300406.8+3300000 -> 3600406.8 | CB112: 159903.41 | CC112: 1534822.69 | CD112: 678752.73 | CE112: 397448.8 | CG112: 458621.16 | CH112: 1534822.69 | CI112: 678752.73 | CJ112: 397448.8 | CL112: 458621.16
A113: услуги по содержанию имущества | AX113: 244 | BK113: 0801 225 | BX113: 106981.3 | BY113: 106981.3 | CC113: 94918.24 | CD113: 94918.24 | CH113: 94918.24 | CI113: 94918.24
A114: прочие работы, услуги | AX114: 244 | BK114: 0707 226 | BX114: 998346.8 | BY114: 729583.8 | BZ114: 97429 | CB114: 171334 | CC114: 1500368.78 | CD114: =766199.28-61910.25 -> 704289.03 | CE114: 97430 | CG114: 698649.75 | CH114: 1500368.78 | CI114: =766199.28-61910.25 -> 704289.03 | CJ114: 97430 | CL114: 698649.75
A115: прочие работы, услуги | AX115: 244 | BK115: 0801 226 | BX115: 441760 | BY115: 441760 | CC115: 624860 | CD115: 624860 | CH115: 624860 | CI115: 624860
A116: страхование | AX116: 244 | BK116: 0707 227 | BX116: 1400 | BZ116: 1400 | CC116: 1400 | CE116: 1400 | CH116: 1400 | CJ116: 1400
A117: увеличение стоимости основных средств | AX117: 244 | BK117: 0707 310 | BX117: 313797.95 | BZ117: 271579.25 | CB117: 42218.7 | CC117: 640369.29 | CE117: 614769.25 | CG117: 25600.04 | CH117: 640369.29 | CJ117: 614769.25 | CL117: 25600.04
A118: увеличение стоимости лекарственных препаратов и материалов, применяемых в медицинских целях | AX118: 244 | BK118: 0707 341 | BX118: 4380 | BY118: 0 | BZ118: 4380 | CC118: 5176 | CD118: 796 | CE118: 4380 | CH118: 5176 | CI118: 796 | CJ118: 4380
A119: увеличение стоимости лекарственных препаратов и материалов, применяемых в медицинских целях | AX119: 244 | BK119: 0801 341 | BX119: 0 | CC119: 0 | CH119: 0
A120: увеличение стоимости продуктов питания | AX120: 244 | BK120: 0707 342 | BX120: 160297.62 | BY120: 61350 | BZ120: 67848.05 | CB120: 31099.57 | CC120: 620200 | CD120: 61350 | CE120: 67850 | CG120: 491000 | CH120: 620200 | CI120: 61350 | CJ120: 67850 | CL120: 491000
A121: увеличение стоимости продуктов питания | AX121: 244 | BK121: 0801 342 | BX121: 0 | BY121: 0 | CC121: 88650 | CD121: 88650 | CH121: 88650 | CI121: 88650
A122: увеличение стоимости мягкого инвентаря | AX122: 244 | BK122: 0707 345 | BX122: 57390 | BY122: 21750 | BZ122: 35640 | CC122: 57390 | CD122: 21750 | CE122: 35640 | CH122: 57390 | CI122: 21750 | CJ122: 35640
A123: увеличение стоимости мягкого инвентаря | AX123: 244 | BK123: 0801 345 | BX123: 0 | BY123: 0 | CC123: 2040 | CD123: 2040 | CH123: 2040 | CI123: 2040
A124: увеличение стоимости прочих оборотных запасов (материалов) | AX124: 244 | BK124: 0707 346 | BX124: 590231.26 | BY124: 216356.88 | BZ124: 170170.9 | CB124: =201418.48+2285 -> 203703.48 | CC124: 553927.22 | CD124: 167769.97 | CE124: 194535 | CG124: 191622.25 | CH124: 553927.22 | CI124: 167769.97 | CJ124: 194535 | CL124: 191622.25
A125: увеличение стоимости прочих оборотных запасов (материалов) | AX125: 244 | BK125: 0801 346 | BX125: 39749.97 | BY125: 39749.97 | CC125: 56590 | CD125: 56590 | CH125: 56590 | CI125: 56590
A126: увеличение стоимости неисключительных прав на результаты интеллектуальной деятельности с определенным сроком полезного использования | AX126: 244 | BK126: 0707 353 | BX126: 0 | CC126: 0 | CH126: 0
A127: увеличение стоимости материальных запасов для целей капитальных вложений | AX127: 244 | BK127: 0801 347 | BX127: 0 | CC127: 0 | CH127: 0
A128: увеличение стоимости прочих материальных запасов однократного применения | AX128: 244 | BK128: 0707 349 | BX128: 264113 | BY128: 200270 | BZ128: 27000 | CB128: 36843 | CC128: 184460 | CD128: 153820 | CE128: 12000 | CG128: 18640 | CH128: 184460 | CI128: 153820 | CJ128: 12000 | CL128: 18640
A129: увеличение стоимости прочих материальных запасов однократного применения | AX129: 244 | BK129: 0801 349 | BX129: 90400 | BY129: 90400 | CC129: 62500 | CD129: 62500 | CH129: 62500 | CI129: 62500
A130: Увеличение стоимости горюче-смазочных материалов | AX130: 244 | BK130: 0707 343 | BX130: =BY130+BZ130+CA130+CB130 -> 0 | CC130: 0 | CH130: =CI130+CJ130+CK130+CL130 -> 0
A131: закупку товаров, работ, услуг, в целях создания, развития, эксплуатации и вывода из эксплуатации государственных информационных систем | AP131: 2650 | AX131: 246
A132: закупку энергетических ресурсов | AP132: 2660 | AX132: 247 | BK132: 0707 223 | BX132: =BY132+BZ132+CA132+CB132 -> 881593.08 | BY132: 678856.21 | CB132: 202736.87 | CC132: =CD132+CE132+CF132+CG132 -> 908688.21 | CD132: 824591.27 | CG132: 84096.94 | CH132: =CI132+CJ132+CK132+CL132 -> 908688.21 | CI132: 824591.27 | CL132: 84096.94
A133: закупку энергетических ресурсов | AP133: 2660 | AX133: 247 | BK133: 0801 223 | BX133: 138877.77 | BY133: 138877.77 | CC133: =CD133+CE133+CF133+CG133 -> 192857.74 | CD133: 192857.74 | CH133: 192857.74 | CI133: 192857.74
A134: капитальные вложения в объекты государственной (муниципальной) собственности, всего | AP134: 2700 | AX134: 400
A135: в том числе: приобретение объектов недвижимого имущества государствееными (муниципальными учреждениями) | AP135: 2710 | AX135: 406
A136: строительство (реконструкция) объектов недвижимого имущества государственными (муниципальными) учреждениями | AP136: 2720 | AX136: 407
A137: Выплаты, уменьшающие доход, всего 8 | AP137: 3000 | AX137: 100 | BX137: =BX140 -> -48067 | CB137: =CB140 -> -48067 | CC137: =CC140 -> -150000 | CG137: =CG140 -> -150000 | CH137: =CH140 -> -150000 | CL137: =CL140 -> -150000 | CM137: х
A138: в том числе: налог на прибыль 8 | AP138: 3010 | CM138: х
A139: налог на добавленную стоимость 8 | AP139: 3020 | CM139: х
A140: прочие налоги, уменьшающие доход 8 | AP140: 3030 | BK140: 0000 189 | BX140: =CB140 -> -48067 | CB140: -48067 | CC140: =-150000 -> -150000 | CG140: =-150000 -> -150000 | CH140: =-150000 -> -150000 | CL140: =-150000 -> -150000 | CM140: х
A141: Прочие выплаты, всего 9 | AP141: 4000 | AX141: х | CM141: х
A142: из них: возврат в бюджет средств субсидии | AP142: 4010 | AX142: 610 | CM142: х
A145: _____1_В случае утверждения закона (решения) о бюджете на текущий финансовый год и плановый период.
A146: _____2_Указывается дата подписания Плана, а в случае утверждения Плана уполномоченным лицом учреждения - дата утверждения Плана.
A147: _____3_В графе 3 отражаются:
A148: _____по строкам 1100 - 1900 - коды аналитической группы подвида доходов бюджетов классификации доходов бюджетов;
A149: _____по строкам 1980 - 1990 - коды аналитической группы вида источников финансирования дефицитов бюджетов классификации источников финансирования дефицитов бюджетов;
A150: _____по строкам 2000 - 2720 - коды видов расходов бюджетов классификации расходов бюджетов;
A151: _____по строкам 3000 - 3030 - коды аналитической группы подвида доходов бюджетов классификации доходов бюджетов, по которым планируется уплата налогов, уменьшающих доход (в том числе налог на прибыль, налог на добавленную стоимость, единый налог на вмененный доход для отдельных видов деятельности);
A152: _____по строкам 4000 - 4040 - коды аналитической группы вида источников финансирования дефицитов бюджетов классификации источников финансирования дефицитов бюджетов.
A153: _____4_В графе 4 указывается код классификации операций сектора государственного управления в соответствии с Порядком применения классификации операций сектора государственного управления, утвержденным приказом Министерства финансов Российской Федерации от 29 ноября 2017 г. № 209н (зарегистрирован в Министерстве юстиции Российской Федерации 12 февраля 2018 г., регистрационный номер 50003), и код функциональной статьи расходов
A154: _____5_По строкам 0001 и 0002 указываются планируемые суммы остатков средств на начало и на конец планируемого года, если указанные показатели по решению органа, осуществляющего функции и полномочия учредителя, планируются на этапе формирования проекта Плана либо указываются фактические остатки средств при внесении изменений в утвержденный План после завершения отчетного финансового года.
A155: _____6_Показатели прочих поступлений включают в себя в том числе показатели увеличения денежных средств за счет возврата дебиторской задолженности прошлых лет, включая возврат предоставленных займов (микрозаймов), а также за счет возврата средств, размещенных на банковских депозитах. При формировании Плана (проекта Плана) обособленному(ым) подразделению(ям) показатель прочих поступлений включает показатель поступлений в рамках расчетов между головным учреждением и обособленным подразделением.
A156: _____7_Показатели выплат по расходам на закупки товаров, работ, услуг, отраженные по строкам 2600 Раздела 1 "Поступления и выплаты" Плана, подлежат детализации в Разделе 2 "Сведения по выплатам на закупку товаров, работ, услуг" Плана.
A157: _____8_Показатель отражается со знаком "минус".
A158: _____9_Показатели прочих выплат включают в себя в том числе показатели уменьшения денежных средств за счет возврата средств субсидий, предоставленных до начала текущего финансового года, предоставления займов (микрозаймов), размещения автономными учреждениями денежных средств на банковских депозитах. При формировании Плана (проекта Плана) обособленному(ым) подразделению(ям) показатель прочих выплат включает показатель поступлений в рамках расчетов между головным учреждением и обособленным подразделением.
BX162: 0707 | BY162: =BY63+BY67+BY69+BY106+BY108+BY110+BY112+BY114+BY118+BY120+BY122+BY124+BY126+BY128-0.01 -> 15878375.16
BX163: 0801 | BY163: =BY64+BY68+BY107+BY109+BY111+BY113+BY115+BY119+BY121+BY123+BY125+BY129 -> 2824405.97
BY164: =BY162+BY163 -> 18702781.13

Sheet РАЗДЕЛ 2
B1: Раздел 2. Сведения по выплатам на закупки товаров, работ, услуг 10
A3: № п/п | I3: Наименование показателя | CN3: Коды строк | CV3: Год начала закупки | DF3: Код по бюджетной классификации Российской Федерации <10.1> | DG3: Уникальный код <10.2> | DH3: Сумма
DH4: на 20 | DN4: 21 | DQ4: г. | DU4: на 20 | EA4: 22 | ED4: г. | EH4: на 20 | EN4: 23 | EQ4: г. | EU4: за пределами планового периода
DH5: (текущий финансовый год) | DU5: (первый год планового периода) | EH5: (второй год планового периода)
A6: 1 | I6: 2 | CN6: 3 | CV6: 4 | DF6: 4.1 | DG6: 4.2 | DH6: 5 | DU6: 6 | EH6: 7 | EU6: 8
A7: 1 | I7: Выплаты на закупку товаров, работ, услуг, всего 11 | CN7: 26000 | CV7: х | DF7: х | DG7: х | DH7: =DH15 -> 8963826.51 | DU7: =DU15 -> 7765173.82 | EH7: =EH15 -> 7765173.82
A8: 1.1 | I8: в том числе: по контрактам (договорам), заключенным до начала текущего финансового года без применения норм Федерального закона от 5 апреля 2013 г. № 44-ФЗ "О контрактной системе в сфере закупок товаров, работ, услуг для обеспечения государственных и муниципальных нужд" (далее - Федеральный закон № 44-ФЗ) и Федерального закона от 18 июля 2011 г. № 223-ФЗ "О закупках товаров, работ, услуг отдельными видами юридических лиц"(далее - Федеральный закон № 223-ФЗ)12 | CN8: 26100 | CV8: х | DF8: х | DG8: х
A9: 1.2 | I9: по контрактам (договорам), планируемым к заключению в соответствующем финансовом году без применения норм Федерального закона № 44-ФЗ и Федерального закона № 223-ФЗ 12 | CN9: 26200 | CV9: х | DF9: х | DG9: х
A10: 1.3 | I10: по контрактам (договорам), заключенным до начала текущего финансового года с учетом требований Федерального закона № 44-ФЗ и Федерального закона № 223-ФЗ 13 | CN10: 26300 | CV10: х | DF10: х | DG10: х
A11: 1.3.1 | I11: в том числе: в соответствии с Федеральным законом N 44-ФЗ | CN11: 26310 | CV11: х | DF11: х | DG11: х
I12: из них <10.1> | CN12: 26310.1 | CV12: х
I13: из них <10.2> | CN13: 26310.2 | CV13: х
A14: 1.3.2 | I14: в соответствии с Федеральным законом N 223-ФЗ | CN14: 26302 | CV14: х | DF14: х | DG14: х
A15: 1.4 | I15: по контрактам (договорам), планируемым к заключению в соответствующем финансовом году с учетом требований Федерального закона № 44-ФЗ и Федерального закона № 223-ФЗ 13 | CN15: 26400 | CV15: х | DF15: х | DG15: х | DH15: =DH16+DH42+DH52 -> 8963826.51 | DU15: =DU16+DU42+DU52 -> 7765173.82 | EH15: =EH16+EH42+EH52 -> 7765173.82
A16: 1.4.1 | I16: в том числе: за счет субсидий, предоставляемых на финансовое обеспечение выполнения муниципального задания | CN16: 26410 | CV16: х | DF16: х | DG16: х | DH16: ='раздел 1'!BY102 -> 3706168.19 | DU16: ='раздел 1'!CD102 -> 4195064.03 | EH16: ='раздел 1'!CI102 -> 4195064.03
A17: 1.4.1.1 | I17: в том числе: в соответствии с Федеральным законом № 44-ФЗ | CN17: 26411 | CV17: х | DF17: х | DG17: х
A18: 1.4.1.2 | I18: в соответствии с Федеральным законом № 223-ФЗ 14 | CN18: 26412 | CV18: х | DF18: х | DG18: х | DH18: =DH16 -> 3706168.19 | DU18: =DU16 -> 4195064.03 | EH18: =EH16 -> 4195064.03
I19: услуги связи | CV19: х | DF19: х | DG19: х | DH19: ='[1]раздел 1'!BX104 -> 200681.92 | DU19: ='[1]раздел 1'!CC104 -> 187403.26 | EH19: ='[1]раздел 1'!CH104 -> 187403.26
I20: услуги связи | CV20: х | DF20: х | DG20: х | DH20: ='[1]раздел 1'!BX105 -> 22160.76 | DU20: ='[1]раздел 1'!CC105 -> 33516.74 | EH20: ='[1]раздел 1'!CH105 -> 33516.74
I21: транспортные услуги | CV21: х | DF21: х | DG21: х | DH21: ='[1]раздел 1'!BX106 -> 279736 | DU21: ='[1]раздел 1'!CC106 -> 265058.63 | EH21: ='[1]раздел 1'!CH106 -> 265058.63
I22: транспортные услуги | CV22: х | DF22: х | DG22: х | DH22: ='[1]раздел 1'!BX107 -> 90830 | DU22: ='[1]раздел 1'!CC107 -> 70557.37 | EH22: ='[1]раздел 1'!CH107 -> 70557.37
I23: коммунальные услуги | CV23: х | DF23: х | DG23: х | DH23: ='[1]раздел 1'!BX108 -> 91582.54 | DU23: ='[1]раздел 1'!CC108 -> 79419.65 | EH23: ='[1]раздел 1'!CH108 -> 79419.65
I24: коммунальные услуги | CV24: х | DF24: х | DG24: х | DH24: ='[1]раздел 1'!BX109 -> 0 | DU24: ='[1]раздел 1'!CC109 -> 0 | EH24: ='[1]раздел 1'!CH109 -> 0
I25: услуги по содержанию имущества | CV25: х | DF25: х | DG25: х | DH25: ='[1]раздел 1'!BX112 -> 1245932.69 | DU25: ='[1]раздел 1'!CC112 -> 1534822.69 | EH25: ='[1]раздел 1'!CH112 -> 1534822.69
I26: услуги по содержанию имущества | CV26: х | DF26: х | DG26: х | DH26: ='[1]раздел 1'!BX113 -> 101158.24 | DU26: ='[1]раздел 1'!CC113 -> 94918.24 | EH26: ='[1]раздел 1'!CH113 -> 94918.24
I27: прочие работы, услуги | CV27: х | DF27: х | DG27: х | DH27: ='[1]раздел 1'!BX114 -> 1386714.55 | DU27: ='[1]раздел 1'!CC114 -> 1500368.78 | EH27: ='[1]раздел 1'!CH114 -> 1500368.78
I28: прочие работы, услуги | CV28: х | DF28: х | DG28: х | DH28: ='[1]раздел 1'!BX115 -> 583240 | DU28: ='[1]раздел 1'!CC115 -> 624860 | EH28: ='[1]раздел 1'!CH115 -> 624860
I29: страхование | CV29: х | DF29: х | DG29: х | DH29: ='[1]раздел 1'!BX116 -> 1400 | DU29: ='[1]раздел 1'!CC116 -> 1400 | EH29: ='[1]раздел 1'!CH116 -> 1400
I30: увеличение стоимости основных средств | CV30: х | DF30: х | DG30: х | DH30: ='[1]раздел 1'!BX117 -> 320279.29 | DU30: ='[1]раздел 1'!CC117 -> 640369.29 | EH30: ='[1]раздел 1'!CH117 -> 640369.29
I31: увеличение стоимости лекарственных препаратов и материалов, применяемых в медицинских целях | CV31: х | DF31: х | DG31: х | DH31: ='[1]раздел 1'!BX118 -> 5176 | DU31: ='[1]раздел 1'!CC118 -> 5176 | EH31: ='[1]раздел 1'!CH118 -> 5176
I32: увеличение стоимости лекарственных препаратов и материалов, применяемых в медицинских целях | CV32: х | DF32: х | DG32: х | DH32: ='[1]раздел 1'!BX119 -> 0 | DU32: ='[1]раздел 1'!CC119 -> 0 | EH32: ='[1]раздел 1'!CH119 -> 0
I33: увеличение стоимости продуктов питания | CV33: х | DF33: х | DG33: х | DH33: ='[1]раздел 1'!BX120 -> 242698.05 | DU33: ='[1]раздел 1'!CC120 -> 620200 | EH33: ='[1]раздел 1'!CH120 -> 620200
I34: увеличение стоимости продуктов питания | CV34: х | DF34: х | DG34: х | DH34: ='[1]раздел 1'!BX121 -> 79650 | DU34: ='[1]раздел 1'!CC121 -> 88650 | EH34: ='[1]раздел 1'!CH121 -> 88650
I35: увеличение стоимости мягкого инвентаря | CV35: х | DF35: х | DG35: х | DH35: ='[1]раздел 1'!BX122 -> 57390 | DU35: ='[1]раздел 1'!CC122 -> 57390 | EH35: ='[1]раздел 1'!CH122 -> 57390
I36: увеличение стоимости мягкого инвентаря | CV36: х | DF36: х | DG36: х | DH36: ='[1]раздел 1'!BX123 -> 2040 | DU36: ='[1]раздел 1'!CC123 -> 2040 | EH36: ='[1]раздел 1'!CH123 -> 2040
I37: увеличение стоимости прочих оборотных запасов (материалов) | CV37: х | DF37: х | DG37: х | DH37: ='[1]раздел 1'!BX124 -> 615043.36 | DU37: ='[1]раздел 1'!CC124 -> 553927.22 | EH37: ='[1]раздел 1'!CH124 -> 553927.22
I38: увеличение стоимости прочих оборотных запасов (материалов) | CV38: х | DF38: х | DG38: х | DH38: ='[1]раздел 1'!BX125 -> 52590 | DU38: ='[1]раздел 1'!CC125 -> 56590 | EH38: ='[1]раздел 1'!CH125 -> 56590
I39: Увеличение стоимости материальных запасов для целей капитальных вложений | CV39: х | DF39: х | DG39: х | DH39: ='[1]раздел 1'!BX126 -> 0 | DU39: =DH39 -> 0 | EH39: =DU39 -> 0
I40: увеличение стоимости прочих материальных запасов однократного применения | CV40: х | DF40: х | DG40: х | DH40: ='[1]раздел 1'!BX128 -> 230510 | DU40: ='[1]раздел 1'!CC128 -> 184460 | EH40: ='[1]раздел 1'!CH128 -> 184460
I41: увеличение стоимости прочих материальных запасов однократного применения | CV41: х | DF41: х | DG41: х | DH41: ='[1]раздел 1'!BX129 -> 75600 | DU41: ='[1]раздел 1'!CC129 -> 62500 | EH41: ='[1]раздел 1'!CH129 -> 62500
A42: 1.4.2 | I42: за счет субсидий, предоставляемых в соответствии с абзацем вторым пункта 1 статьи 78.1 Бюджетного кодекса Российской Федерации | CN42: 26420 | CV42: х | DF42: х | DG42: х | DH42: =DH45 -> 4364354 | DU42: =DU45 -> 1513953.05 | EH42: =EH45 -> 1513953.05
A43: 1.4.2.1 | I43: в том числе: в соответствии с Федеральным законом № 44-ФЗ | CN43: 26421 | CV43: х | DF43: х | DG43: х
I44: из них <10.1> | CN44: 26421.1 | CV44: х | DF44: х | DG44: х
A45: 1.4.2.2 | I45: в соответствии с Федеральным законом № 223-ФЗ 14 | CN45: 26422 | CV45: х | DF45: х | DG45: х | DH45: ='раздел 1'!BZ102 -> 4364354 | DU45: ='раздел 1'!CE102 -> 1513953.05 | EH45: ='раздел 1'!CJ102 -> 1513953.05
A46: 1.4.3 | I46: за счет субсидий, предоставляемых на осуществление капитальных вложений 15 | CN46: 26430 | CV46: х | DF46: х | DG46: х
I47: из них <10.1> | CN47: 26430.1 | CV47: х
I48: из них <10.2> | CN48: 26430.2 | CV48: х
A49: 1.4.4 | I49: за счет средств обязательного медицинского страхования | CN49: 26440 | CV49: х | DF49: х | DG49: х
A50: 1.4.4.1 | I50: в том числе: в соответствии с Федеральным законом № 44-ФЗ | CN50: 26441 | CV50: х | DF50: х | DG50: х
A51: 1.4.4.2 | I51: в соответствии с Федеральным законом № 223-ФЗ 14 | CN51: 26442 | CV51: х | DF51: х | DG51: х
A52: 1.4.5 | I52: за счет прочих источников финансового обеспечения | CN52: 26450 | CV52: х | DF52: х | DG52: х | DH52: =DH56 -> 893304.32 | DU52: =DU56 -> 2056156.74 | EH52: =EH56 -> 2056156.74
A53: 1.4.5.1 | I53: в том числе: в соответствии с Федеральным законом № 44-ФЗ | CN53: 26451 | CV53: х | DF53: х | DG53: х
I54: из них <10.1> | CN54: 26451.1 | CV54: х
I55: из них <10.2> | CN55: 26451.2 | CV55: х
A56: 1.4.5.2 | I56: в соответствии с Федеральным законом № 223-ФЗ | CN56: 26452 | CV56: х | DH56: ='раздел 1'!CB102 -> 893304.32 | DU56: ='раздел 1'!CG102 -> 2056156.74 | EH56: ='раздел 1'!CL102 -> 2056156.74
A57: 2 | I57: Итого по контрактам, планируемым к заключению в соответствующем финансовом году в соответствии с Федеральным законом № 44-ФЗ, по соответствующему году закупки 16 | CN57: 26500 | CV57: х
I58: в том числе по году начала закупки: | CN58: 26510
A60: 3 | I60: Итого по договорам, планируемым к заключению в соответствующем финансовом году в соответствии с Федеральным законом № 223-ФЗ, по соответствующему году закупки | CN60: 26600 | CV60: х
I61: в том числе по году начала закупки: | CN61: 26610
I64: Руководитель учреждения
I65: (уполномоченное лицо учреждения) | AQ65: Директор | BY65: Герасимов С.В.
AQ66: (должность) | BK66: (подпись) | BY66: (расшифровка подписи)
I68: Исполнитель | AM68: Ведущий экономист | CA68: Богданова Н.Ф.
AM69: (должность) | BG69: (фамилия, инициалы) | CA69: (телефон)
I71: " | N71: " | AF71: 20 | AL71: г.
A74: СОГЛАСОВАНО
A76: (наименование должности уполномоченного лица Учредителя)
A79: (подпись) | AH79: (расшифровка подписи)
A81: " | F81: " | X81: 20 | AD81: г.
A84: _____10_В Разделе 2 "Сведения по выплатам на закупку товаров, работ, услуг" Плана детализируются показатели выплат по расходам на закупку товаров, работ, услуг, отраженные по соответствующим строкам Раздела 1 "Поступления и выплаты" Плана.
A85: _____10.1 В случаях, если учреждению предоставляются субсидия на иные цели, субсидия на осуществление капитальных вложений или грант в форме субсидии в соответствии с абзацем первым пункта 4 статьи 78.1 Бюджетного кодекса Российской Федерации в целях достижения результатов федерального проекта, в том числе входящего в состав соответствующего национального проекта (программы), определенного Указом Президента Российской Федерации от 7 мая 2018 г. N 204 «О национальных целях и стратегических задачах развития Российской Федерации на период до 2024 года» (Собрание законодательства Российской Федерации, 2018, N 20, ст. 2817; N 30, ст. 4717), или регионального проекта, обеспечивающего достижение целей, показателей и результатов федерального проекта (далее - региональный проект), показатели строк 26310, 26421, 26430 и 26451 Раздела 2 «Сведения по выплатам на закупку товаров, работ, услуг» детализируются по коду целевой статьи (8 - 17 разряды кода классификации расходов бюджетов, при этом в рамках реализации регионального проекта в 8 - 10 разрядах могут указываться нули).».
A86: _____10.2 Указывается уникальный код объекта капитального строительства или объекта недвижимого имущества, присвоенный государственной интегрированной информационной системой управления общественными финансами «Электронный бюджет», в случае если источником финансового обеспечения расходов на осуществление капитальных вложений являются средства федерального бюджета, в том числе предоставленные в виде межбюджетного трансферта в целях софинансирования расходных обязательств субъекта Российской Федерации (муниципального образования).
A87: _____11_Плановые показатели выплат на закупку товаров, работ, услуг по строке 26000 Раздела 2 "Сведения по выплатам на закупку товаров, работ, услуг" Плана распределяются на выплаты по контрактам (договорам), заключенным (планируемым к заключению) в соответствии с гражданским законодательством (строки 26100 и 26200), а также по контрактам (договорам), заключаемым в соответствии с требованиями законодательства Российской Федерации и иных нормативных правовых актов о контрактной системе в сфере закупок товаров, работ, услуг для обеспечения государственных и муниципальных нужд с детализацией указанных выплат по контрактам (договорам), заключенным до начала текущего финансового года (строка 26300) и планируемым к заключению в соответствующем финансовом году (строка 26400).".
A88: _____12_Указывается сумма договоров (контрактов) о закупках товаров, работ, услуг, заключенных без учета требований Федерального закона № 44-ФЗ и Федерального закона № 223-ФЗ, в случаях, предусмотренных указанными федеральными законами.
A89: _____13_Указывается сумма закупок товаров, работ, услуг, осуществляемых в соответствии с Федеральным законом № 44-ФЗ и Федеральным законом № 223-ФЗ.
A90: _____14_Государственным (муниципальным) бюджетным учреждением показатель не формируется.
A91: _____15_Указывается сумма закупок товаров, работ, услуг, осуществляемых в соответствии с Федеральным законом № 44-ФЗ.
A92: _____16_Плановые показатели выплат на закупку товаров, работ, услуг по строке 26500 муниципального бюджетного учреждения должен быть не менее суммы показателей строк 26410, 26420, 26430, 26440 по соответствующей графе, муниципального автономного учреждения - не менее показателя строки 26430 по соответствующей графе.
